[Event "*** SCC Grand Prix: Titled Tuesday Blitz"]
[Site "Chess.com"]
[Date "2020.06.09"]
[Round "2"]
[White "pfalcon1949"]
[Black "bazar-wokzal"]
[Result "1-0"]
[WhiteElo "1929"]
[BlackElo "2369"]
[TimeControl "180+1"]
[EndTime "9:18:50 PDT"]
[Termination "pfalcon1949 won on time"]

1. d4 {[%clk 0:03:00.9]} 1... Nf6 {[%clk 0:02:59.3]} 2. c4 {[%clk 0:03:01]} 2...
Nc6 {[%clk 0:02:58.9]} 3. Nf3 {[%clk 0:02:56]} 3... e6 {[%clk 0:02:58.6]} 4. a3
{[%clk 0:02:54.9]} 4... d5 {[%clk 0:02:58.1]} 5. cxd5 {[%clk 0:02:51.1]} 5...
exd5 {[%clk 0:02:57.5]} 6. Nc3 {[%clk 0:02:51.1]} 6... g6 {[%clk 0:02:57.4]} 7.
Bf4 {[%clk 0:02:50.5]} 7... a6 {[%clk 0:02:57]} 8. e3 {[%clk 0:02:50.9]} 8...
Bg7 {[%clk 0:02:56.6]} 9. Qc2 {[%clk 0:02:50.7]} 9... O-O {[%clk 0:02:56.1]} 10.
Bd3 {[%clk 0:02:50.6]} 10... Ne7 {[%clk 0:02:54.4]} 11. Be5 {[%clk 0:02:50.4]}
11... Bf5 {[%clk 0:02:48.5]} 12. O-O {[%clk 0:02:48.5]} 12... Rc8 {[%clk
0:02:42.7]} 13. Nh4 {[%clk 0:02:43.1]} 13... Bxd3 {[%clk 0:02:39.5]} 14. Qxd3
{[%clk 0:02:44]} 14... c6 {[%clk 0:02:31.2]} 15. f4 {[%clk 0:02:44]} 15... Nd7
{[%clk 0:02:01.6]} 16. Bxg7 {[%clk 0:02:41.8]} 16... Kxg7 {[%clk 0:02:01.6]} 17.
f5 {[%clk 0:02:41.7]} 17... Ng8 {[%clk 0:01:50]} 18. g3 {[%clk 0:02:32.3]} 18...
Qe7 {[%clk 0:01:42.6]} 19. Rae1 {[%clk 0:02:23.1]} 19... Rce8 {[%clk 0:01:41.8]}
20. Nd1 {[%clk 0:02:06.5]} 20... Ndf6 {[%clk 0:01:36.6]} 21. Nf2 {[%clk
0:02:04.7]} 21... Ne4 {[%clk 0:01:33.2]} 22. Nxe4 {[%clk 0:02:03.5]} 22... Qxe4
{[%clk 0:01:33]} 23. Qb3 {[%clk 0:01:49.5]} 23... Re7 {[%clk 0:01:27.4]} 24. Rf4
{[%clk 0:01:47]} 24... Qxf4 {[%clk 0:01:05.4]} 25. gxf4 {[%clk 0:01:46.4]} 25...
Rfe8 {[%clk 0:01:03.5]} 26. Qd3 {[%clk 0:01:43.5]} 26... Nf6 {[%clk 0:01:01.8]}
27. fxg6 {[%clk 0:01:39.7]} 27... hxg6 {[%clk 0:01:00.3]} 28. Nf3 {[%clk
0:01:39.9]} 28... Ne4 {[%clk 0:00:57.3]} 29. Re2 {[%clk 0:01:35.8]} 29... f6
{[%clk 0:00:54.9]} 30. Nd2 {[%clk 0:01:31.9]} 30... Nd6 {[%clk 0:00:50.9]} 31.
b4 {[%clk 0:01:28]} 31... Kf7 {[%clk 0:00:49.6]} 32. Kf2 {[%clk 0:01:22.4]}
32... Rh8 {[%clk 0:00:41.7]} 33. Kg2 {[%clk 0:01:17.5]} 33... Ree8 {[%clk
0:00:37]} 34. e4 {[%clk 0:01:16.5]} 34... dxe4 {[%clk 0:00:33]} 35. Nxe4 {[%clk
0:01:15.4]} 35... Nf5 {[%clk 0:00:33]} 36. Ng3 {[%clk 0:01:13.2]} 36... Nd6
{[%clk 0:00:24.1]} 37. Rxe8 {[%clk 0:01:11.6]} 37... Rxe8 {[%clk 0:00:23.1]} 38.
h4 {[%clk 0:01:07.7]} 38... Re1 {[%clk 0:00:19.8]} 39. h5 {[%clk 0:01:07.4]}
39... f5 {[%clk 0:00:18.9]} 40. hxg6+ {[%clk 0:01:07.1]} 40... Kxg6 {[%clk
0:00:18.6]} 41. d5 {[%clk 0:01:06.1]} 41... Ne4 {[%clk 0:00:14.3]} 42. dxc6
{[%clk 0:00:59.8]} 42... bxc6 {[%clk 0:00:13]} 43. Nxe4 {[%clk 0:00:53.2]} 43...
Rxe4 {[%clk 0:00:08.6]} 44. Qd6+ {[%clk 0:00:52.6]} 44... Kh5 {[%clk 0:00:08]}
45. Kf3 {[%clk 0:00:48.9]} 45... Rc4 {[%clk 0:00:06.5]} 46. Qf8 {[%clk
0:00:47.8]} 46... Rc3+ {[%clk 0:00:06.1]} 47. Kf2 {[%clk 0:00:47.8]} 47... Kg4
{[%clk 0:00:05.6]} 48. Qd6 {[%clk 0:00:45.9]} 48... Rc2+ {[%clk 0:00:04.9]} 49.
Ke3 {[%clk 0:00:45.1]} 49... Rc3+ {[%clk 0:00:05]} 50. Kd2 {[%clk 0:00:44.6]}
50... Rxa3 {[%clk 0:00:04.8]} 51. Kc2 {[%clk 0:00:43.1]} 51... Rf3 {[%clk
0:00:03.7]} 52. Qxc6 {[%clk 0:00:39.8]} 52... Rxf4 {[%clk 0:00:03.8]} 53. Qg2+
{[%clk 0:00:39.8]} 53... Kh4 {[%clk 0:00:03.2]} 54. Qh2+ {[%clk 0:00:39.6]}
54... Kg4 {[%clk 0:00:03.3]} 55. Qd2 {[%clk 0:00:39.2]} 55... Rf3 {[%clk
0:00:01.8]} 56. Qd4+ {[%clk 0:00:38.9]} 56... f4 {[%clk 0:00:01.8]} 57. Qb6
{[%clk 0:00:37.1]} 1-0

[Event "*** SCC Grand Prix: Titled Tuesday Blitz"]
[Site "Chess.com"]
[Date "2020.06.09"]
[Round "2"]
[White "anastasiyakarlovych"]
[Black "Kislov_Oleg"]
[Result "0-1"]
[WhiteElo "1952"]
[BlackElo "2392"]
[TimeControl "180+1"]
[EndTime "9:18:51 PDT"]
[Termination "Kislov_Oleg won by resignation"]

1. e4 {[%clk 0:02:43]} 1... e6 {[%clk 0:02:58.5]} 2. d4 {[%clk 0:02:42.2]} 2...
d5 {[%clk 0:02:58.6]} 3. e5 {[%clk 0:02:41.8]} 3... c5 {[%clk 0:02:58.3]} 4.
dxc5 {[%clk 0:02:41.9]} 4... Nc6 {[%clk 0:02:57.3]} 5. Nf3 {[%clk 0:02:40.5]}
5... Bxc5 {[%clk 0:02:56]} 6. Bd3 {[%clk 0:02:40.4]} 6... Nge7 {[%clk
0:02:49.5]} 7. Bf4 {[%clk 0:02:39]} 7... h6 {[%clk 0:02:48.6]} 8. Nbd2 {[%clk
0:02:28.5]} 8... Qb6 {[%clk 0:02:40]} 9. O-O {[%clk 0:02:27.3]} 9... Qxb2 {[%clk
0:02:39.9]} 10. Nb3 {[%clk 0:02:08.9]} 10... Qa3 {[%clk 0:02:37.3]} 11. c4
{[%clk 0:01:53.2]} 11... Qb4 {[%clk 0:02:08.1]} 12. Bd2 {[%clk 0:01:44.8]} 12...
Qb6 {[%clk 0:02:07.8]} 13. Nxc5 {[%clk 0:01:38.8]} 13... Qxc5 {[%clk 0:02:07.5]}
14. Rc1 {[%clk 0:01:39.3]} 14... d4 {[%clk 0:02:02.9]} 15. Re1 {[%clk
0:01:31.6]} 15... b6 {[%clk 0:01:47]} 16. Bf4 {[%clk 0:01:20.6]} 16... Bb7
{[%clk 0:01:43.7]} 17. Nd2 {[%clk 0:01:18]} 17... Nb4 {[%clk 0:01:33.2]} 18. Ne4
{[%clk 0:01:15.2]} 18... Bxe4 {[%clk 0:01:31.4]} 19. Bxe4 {[%clk 0:01:14.9]}
19... Rd8 {[%clk 0:01:27.1]} 20. Qg4 {[%clk 0:01:10.2]} 20... g6 {[%clk
0:01:15.1]} 21. Qh4 {[%clk 0:01:03.3]} 21... Nf5 {[%clk 0:01:09.5]} 22. Qf6
{[%clk 0:00:55.5]} 22... Rg8 {[%clk 0:00:59]} 23. Bxf5 {[%clk 0:00:47.3]} 23...
gxf5 {[%clk 0:00:57.9]} 24. Red1 {[%clk 0:00:36.5]} 24... Rg6 {[%clk 0:00:46.5]}
25. Qh8+ {[%clk 0:00:23.9]} 25... Ke7 {[%clk 0:00:44.6]} 26. Qh7 {[%clk
0:00:24.3]} 26... Rdg8 {[%clk 0:00:42]} 27. g3 {[%clk 0:00:24.4]} 27... Qc8
{[%clk 0:00:24.7]} 28. Bxh6 {[%clk 0:00:17.5]} 28... Rh8 {[%clk 0:00:23]} 29.
Qg7 {[%clk 0:00:13.9]} 29... Rxg7 {[%clk 0:00:20.1]} 30. Bxg7 {[%clk 0:00:14.8]}
30... Re8 {[%clk 0:00:13.8]} 31. Bf6+ {[%clk 0:00:14.9]} 31... Kd7 {[%clk
0:00:12.5]} 32. Rxd4+ {[%clk 0:00:15.5]} 32... Kc7 {[%clk 0:00:12.5]} 33. c5
{[%clk 0:00:15.4]} 33... Nc6 {[%clk 0:00:11.2]} 34. cxb6+ {[%clk 0:00:15.3]}
34... axb6 {[%clk 0:00:11.2]} 35. Rd6 {[%clk 0:00:15.3]} 35... Kb7 {[%clk
0:00:11]} 36. Rcxc6 {[%clk 0:00:15]} 36... Qxc6 {[%clk 0:00:10.8]} 37. Rxc6
{[%clk 0:00:15.1]} 37... Kxc6 {[%clk 0:00:11]} 38. h4 {[%clk 0:00:16]} 38... Ra8
{[%clk 0:00:04.4]} 39. h5 {[%clk 0:00:16.9]} 39... Rxa2 {[%clk 0:00:05]} 40. h6
{[%clk 0:00:17.8]} 40... b5 {[%clk 0:00:05.5]} 41. h7 {[%clk 0:00:18.5]} 41...
Ra8 {[%clk 0:00:06.2]} 42. h8=Q {[%clk 0:00:18.2]} 42... Rxh8 {[%clk 0:00:06.3]}
43. Bxh8 {[%clk 0:00:19.1]} 43... b4 {[%clk 0:00:07]} 44. Bf6 {[%clk 0:00:19.5]}
44... b3 {[%clk 0:00:07.3]} 45. g4 {[%clk 0:00:17.6]} 45... b2 {[%clk
0:00:07.5]} 46. gxf5 {[%clk 0:00:17.2]} 46... b1=Q+ {[%clk 0:00:07.8]} 47. Kg2
{[%clk 0:00:15.7]} 47... Qxf5 {[%clk 0:00:08.7]} 0-1

[Event "*** SCC Grand Prix: Titled Tuesday Blitz"]
[Site "Chess.com"]
[Date "2020.06.09"]
[Round "2"]
[White "Indianlad"]
[Black "BogdanBelyakov89"]
[Result "1/2-1/2"]
[WhiteElo "2983"]
[BlackElo "2618"]
[TimeControl "180+1"]
[EndTime "9:18:53 PDT"]
[Termination "Game drawn by repetition"]

1. e4 {[%clk 0:02:59.6]} 1... e5 {[%clk 0:02:59.2]} 2. Nf3 {[%clk 0:02:59.4]}
2... Nc6 {[%clk 0:02:59.2]} 3. Bb5 {[%clk 0:02:59.3]} 3... Nf6 {[%clk 0:02:59]}
4. O-O {[%clk 0:02:58.1]} 4... Nxe4 {[%clk 0:02:57.9]} 5. d4 {[%clk 0:02:58.6]}
5... Nd6 {[%clk 0:02:57.7]} 6. dxe5 {[%clk 0:02:57.8]} 6... Nxb5 {[%clk
0:02:57.3]} 7. a4 {[%clk 0:02:58.4]} 7... Nbd4 {[%clk 0:02:44.4]} 8. Nxd4 {[%clk
0:02:58.5]} 8... Nxd4 {[%clk 0:02:44.7]} 9. Qxd4 {[%clk 0:02:59.3]} 9... d5
{[%clk 0:02:45.3]} 10. exd6 {[%clk 0:03:00.1]} 10... Qxd6 {[%clk 0:02:45]} 11.
Qe4+ {[%clk 0:03:00.5]} 11... Qe6 {[%clk 0:02:44.9]} 12. Qd4 {[%clk 0:03:01.1]}
12... Qd6 {[%clk 0:02:44.9]} 13. Qe3+ {[%clk 0:03:01.8]} 13... Be7 {[%clk
0:02:37.5]} 14. Nc3 {[%clk 0:03:01.9]} 14... c6 {[%clk 0:02:30.4]} 15. Re1
{[%clk 0:02:47.5]} 15... Be6 {[%clk 0:02:29.5]} 16. Ne4 {[%clk 0:02:47.5]} 16...
Qe5 {[%clk 0:02:29.3]} 17. Bd2 {[%clk 0:02:42.8]} 17... O-O {[%clk 0:02:23.7]}
18. Bc3 {[%clk 0:02:42.6]} 18... Qf5 {[%clk 0:02:22.1]} 19. Ng3 {[%clk 0:02:30]}
19... Qg6 {[%clk 0:02:15.1]} 20. Rad1 {[%clk 0:02:29.9]} 20... Bf6 {[%clk
0:02:02.6]} 21. Bxf6 {[%clk 0:02:22]} 21... Qxf6 {[%clk 0:02:03.5]} 22. Nh5
{[%clk 0:02:17.1]} 22... Qg6 {[%clk 0:01:59.1]} 23. Nf4 {[%clk 0:02:15.7]} 23...
Qxc2 {[%clk 0:01:57.9]} 24. Nxe6 {[%clk 0:02:14.4]} 24... fxe6 {[%clk
0:01:58.2]} 25. b3 {[%clk 0:01:46.1]} 25... Rf7 {[%clk 0:01:49.3]} 26. Rd2
{[%clk 0:01:42.6]} 26... Qf5 {[%clk 0:01:48.5]} 27. Red1 {[%clk 0:01:42.9]}
27... h6 {[%clk 0:01:38.9]} 28. h3 {[%clk 0:01:42.7]} 28... a6 {[%clk 0:01:32]}
29. Re1 {[%clk 0:01:25.7]} 29... Re8 {[%clk 0:01:27.9]} 30. Rd4 {[%clk 0:01:07]}
30... e5 {[%clk 0:01:26.6]} 31. Re4 {[%clk 0:01:07.5]} 31... Rfe7 {[%clk
0:00:40]} 32. f4 {[%clk 0:01:07.1]} 32... Re6 {[%clk 0:00:34.6]} 33. fxe5 {[%clk
0:01:06.1]} 33... Kh8 {[%clk 0:00:31.3]} 34. a5 {[%clk 0:01:06.2]} 34... Qg6
{[%clk 0:00:24.1]} 35. b4 {[%clk 0:01:05.9]} 35... Qf5 {[%clk 0:00:24.1]} 36.
Qg3 {[%clk 0:00:55.2]} 36... Kh7 {[%clk 0:00:20.6]} 37. Rf4 {[%clk 0:00:52.1]}
37... Qg6 {[%clk 0:00:19.3]} 38. Rg4 {[%clk 0:00:52.2]} 38... Qf7 {[%clk
0:00:19.5]} 39. h4 {[%clk 0:00:50.6]} 39... Qd7 {[%clk 0:00:16.6]} 40. Kh2
{[%clk 0:00:50.2]} 40... Rxe5 {[%clk 0:00:12.2]} 41. Rxe5 {[%clk 0:00:38.1]}
41... Rxe5 {[%clk 0:00:13.1]} 42. Rf4 {[%clk 0:00:30.7]} 42... Re7 {[%clk
0:00:11.6]} 43. Qf3 {[%clk 0:00:29.8]} 43... Qd6 {[%clk 0:00:11.5]} 44. Kh3
{[%clk 0:00:28.4]} 44... Qe6+ {[%clk 0:00:11.4]} 45. Kh2 {[%clk 0:00:29.2]}
45... Qe5 {[%clk 0:00:11.2]} 46. Kh3 {[%clk 0:00:29.6]} 46... Qe6+ {[%clk
0:00:11.2]} 47. Kh2 {[%clk 0:00:28.6]} 47... Qd6 {[%clk 0:00:11.1]} 48. Qg3
{[%clk 0:00:27.2]} 48... Qe6 {[%clk 0:00:09.7]} 49. Qd3+ {[%clk 0:00:27]} 49...
Qg6 {[%clk 0:00:09.8]} 50. Qf3 {[%clk 0:00:26.4]} 50... Qd6 {[%clk 0:00:09.8]}
1/2-1/2

[Event "*** SCC Grand Prix: Titled Tuesday Blitz"]
[Site "Chess.com"]
[Date "2020.06.09"]
[Round "2"]
[White "Smile2005"]
[Black "Pavel_Mir"]
[Result "1-0"]
[WhiteElo "2507"]
[BlackElo "2296"]
[TimeControl "180+1"]
[EndTime "9:18:55 PDT"]
[Termination "Smile2005 won by checkmate"]

1. Nf3 {[%clk 0:03:00.6]} 1... d5 {[%clk 0:02:59.1]} 2. g3 {[%clk 0:03:01.5]}
2... g6 {[%clk 0:02:59.6]} 3. Bg2 {[%clk 0:03:02.4]} 3... Bg7 {[%clk 0:03:00.3]}
4. O-O {[%clk 0:03:02.9]} 4... e5 {[%clk 0:03:00.7]} 5. d3 {[%clk 0:03:03.8]}
5... Ne7 {[%clk 0:03:01.1]} 6. e4 {[%clk 0:03:04.2]} 6... O-O {[%clk 0:03:00.9]}
7. exd5 {[%clk 0:03:04.5]} 7... Nxd5 {[%clk 0:03:01.2]} 8. Re1 {[%clk
0:03:05.3]} 8... Re8 {[%clk 0:02:58.8]} 9. Nc3 {[%clk 0:03:05.1]} 9... Nxc3
{[%clk 0:02:55.7]} 10. bxc3 {[%clk 0:03:06]} 10... c6 {[%clk 0:02:55.9]} 11. Nd2
{[%clk 0:03:05.1]} 11... Na6 {[%clk 0:02:53.2]} 12. Nc4 {[%clk 0:03:02.6]} 12...
f6 {[%clk 0:02:46.6]} 13. a4 {[%clk 0:03:00.8]} 13... Be6 {[%clk 0:02:45.8]} 14.
Ba3 {[%clk 0:02:57.3]} 14... Bxc4 {[%clk 0:02:36.9]} 15. dxc4 {[%clk 0:02:58.2]}
15... Qa5 {[%clk 0:02:36.9]} 16. Qd7 {[%clk 0:02:48.9]} 16... Qc7 {[%clk
0:02:30]} 17. Red1 {[%clk 0:02:41.5]} 17... Rad8 {[%clk 0:02:24.9]} 18. Qxc7
{[%clk 0:02:16.5]} 18... Nxc7 {[%clk 0:02:25.2]} 19. Rdb1 {[%clk 0:02:13.3]}
19... Rb8 {[%clk 0:02:03.7]} 20. Bd6 {[%clk 0:02:03.1]} 20... Rec8 {[%clk
0:02:03.7]} 21. Bh3 {[%clk 0:01:57.8]} 21... f5 {[%clk 0:02:01.2]} 22. g4 {[%clk
0:01:49.4]} 22... Bf8 {[%clk 0:01:51.9]} 23. Bxe5 {[%clk 0:01:47.3]} 23... Bg7
{[%clk 0:01:41.2]} 24. Bd6 {[%clk 0:01:41.6]} 24... Bf8 {[%clk 0:01:38.8]} 25.
Bg3 {[%clk 0:01:38.3]} 25... g5 {[%clk 0:01:07.5]} 26. gxf5 {[%clk 0:01:34.5]}
26... h5 {[%clk 0:01:07.8]} 27. f3 {[%clk 0:01:20.1]} 27... h4 {[%clk 0:01:06]}
28. Be5 {[%clk 0:01:17.8]} 28... Bc5+ {[%clk 0:01:00.5]} 29. Kg2 {[%clk
0:01:14.8]} 29... Re8 {[%clk 0:00:34.5]} 30. Bxc7 {[%clk 0:00:48.2]} 30... Re2+
{[%clk 0:00:34.4]} 31. Kh1 {[%clk 0:00:38.8]} 31... Rc8 {[%clk 0:00:34.5]} 32.
Rxb7 {[%clk 0:00:35.3]} 32... Rxc2 {[%clk 0:00:33.4]} 33. Bg4 {[%clk 0:00:18.2]}
33... Re8 {[%clk 0:00:30.2]} 34. f6 {[%clk 0:00:07.5]} 34... Ree2 {[%clk
0:00:26.1]} 35. f4 {[%clk 0:00:06.8]} 35... Re4 {[%clk 0:00:19.2]} 36. Bf5
{[%clk 0:00:03.5]} 36... Ree2 {[%clk 0:00:19.1]} 37. Bxc2 {[%clk 0:00:03.6]}
37... Rxc2 {[%clk 0:00:18.4]} 38. fxg5 {[%clk 0:00:04]} 38... h3 {[%clk
0:00:18.6]} 39. Rf1 {[%clk 0:00:02.9]} 39... Kf7 {[%clk 0:00:18.2]} 40. g6+
{[%clk 0:00:02.9]} 40... Kxg6 {[%clk 0:00:18.4]} 41. f7 {[%clk 0:00:03.4]} 41...
Bd6 {[%clk 0:00:18.1]} 42. Bxd6 {[%clk 0:00:03.7]} 42... Rd2 {[%clk 0:00:18.1]}
43. f8=Q {[%clk 0:00:03.7]} 43... Rg2 {[%clk 0:00:17.8]} 44. Qg8+ {[%clk
0:00:03.5]} 44... Kh6 {[%clk 0:00:17.8]} 45. Rh7# {[%clk 0:00:04.4]} 1-0

[Event "*** SCC Grand Prix: Titled Tuesday Blitz"]
[Site "Chess.com"]
[Date "2020.06.09"]
[Round "2"]
[White "renehp"]
[Black "Azoulas1"]
[Result "1-0"]
[WhiteElo "2393"]
[BlackElo "1970"]
[TimeControl "180+1"]
[EndTime "9:18:56 PDT"]
[Termination "renehp won on time"]

1. e4 {[%clk 0:02:59.8]} 1... c5 {[%clk 0:02:58.7]} 2. Nf3 {[%clk 0:02:59.8]}
2... e6 {[%clk 0:02:58.6]} 3. d4 {[%clk 0:02:59.7]} 3... cxd4 {[%clk 0:02:57.9]}
4. Nxd4 {[%clk 0:03:00.6]} 4... Nf6 {[%clk 0:02:58.1]} 5. Nc3 {[%clk 0:03:00.5]}
5... d6 {[%clk 0:02:58.4]} 6. Be3 {[%clk 0:03:00.1]} 6... a6 {[%clk 0:02:56.9]}
7. f3 {[%clk 0:02:59.4]} 7... Nbd7 {[%clk 0:02:55.8]} 8. Qd2 {[%clk 0:02:59.6]}
8... b5 {[%clk 0:02:54.3]} 9. g4 {[%clk 0:02:59.9]} 9... Nb6 {[%clk 0:02:53.5]}
10. a4 {[%clk 0:02:59.7]} 10... b4 {[%clk 0:02:41.5]} 11. Na2 {[%clk 0:02:58.9]}
11... d5 {[%clk 0:02:40]} 12. g5 {[%clk 0:02:32]} 12... Nfd7 {[%clk 0:02:25.6]}
13. a5 {[%clk 0:02:28.3]} 13... Nc4 {[%clk 0:02:18.6]} 14. Bxc4 {[%clk
0:02:27.5]} 14... dxc4 {[%clk 0:02:17.4]} 15. Nxb4 {[%clk 0:02:25.3]} 15... Qc7
{[%clk 0:02:10]} 16. c3 {[%clk 0:02:00.6]} 16... Bb7 {[%clk 0:02:06]} 17. O-O
{[%clk 0:02:00.2]} 17... Rd8 {[%clk 0:01:55.7]} 18. Rad1 {[%clk 0:01:43.9]}
18... Nc5 {[%clk 0:01:51.8]} 19. Qg2 {[%clk 0:01:36.1]} 19... Bd6 {[%clk
0:01:35.7]} 20. Rf2 {[%clk 0:01:28.8]} 20... O-O {[%clk 0:01:32.3]} 21. Rfd2
{[%clk 0:01:28.3]} 21... Bf4 {[%clk 0:01:29.3]} 22. Bxf4 {[%clk 0:01:25.6]}
22... Qxf4 {[%clk 0:01:26.8]} 23. Qg3 {[%clk 0:01:26]} 23... Qe3+ {[%clk
0:01:19.3]} 24. Kh1 {[%clk 0:01:16.7]} 24... Nxe4 {[%clk 0:01:03.9]} 25. fxe4
{[%clk 0:00:49.8]} 25... Bxe4+ {[%clk 0:01:01.4]} 26. Rg2 {[%clk 0:00:48.3]}
26... Bxg2+ {[%clk 0:00:48.9]} 27. Kxg2 {[%clk 0:00:48.6]} 27... Qe4+ {[%clk
0:00:44.6]} 28. Qf3 {[%clk 0:00:43.5]} 28... Qg6 {[%clk 0:00:35.9]} 29. h4
{[%clk 0:00:37.3]} 29... e5 {[%clk 0:00:25]} 30. Ndc6 {[%clk 0:00:37]} 30...
Rde8 {[%clk 0:00:20.2]} 31. Nd5 {[%clk 0:00:28.1]} 31... Qc2+ {[%clk 0:00:18]}
32. Kg1 {[%clk 0:00:26]} 32... e4 {[%clk 0:00:17.3]} 33. Qg4 {[%clk 0:00:20]}
33... Qxb2 {[%clk 0:00:12.7]} 34. Nf6+ {[%clk 0:00:19.4]} 34... Kh8 {[%clk
0:00:11.1]} 35. Nxe8 {[%clk 0:00:19.5]} 35... Rxe8 {[%clk 0:00:09.8]} 36. Qd7
{[%clk 0:00:16.8]} 36... Rf8 {[%clk 0:00:08.6]} 37. Qxf7 {[%clk 0:00:13.5]}
37... Rg8 {[%clk 0:00:05.6]} 38. Ne7 {[%clk 0:00:13.1]} 38... Rb8 {[%clk
0:00:04.8]} 39. Qd5 {[%clk 0:00:10.2]} 1-0

[Event "*** SCC Grand Prix: Titled Tuesday Blitz"]
[Site "Chess.com"]
[Date "2020.06.09"]
[Round "2"]
[White "QuintilianoR"]
[Black "Quiet_Desperation"]
[Result "1-0"]
[WhiteElo "2638"]
[BlackElo "1904"]
[TimeControl "180+1"]
[EndTime "9:18:57 PDT"]
[Termination "QuintilianoR won on time"]

1. d4 {[%clk 0:03:00.9]} 1... Nf6 {[%clk 0:02:59.2]} 2. Nf3 {[%clk 0:03:01.1]}
2... e6 {[%clk 0:02:58.1]} 3. Bf4 {[%clk 0:03:01.2]} 3... b6 {[%clk 0:02:54.9]}
4. e3 {[%clk 0:03:01.4]} 4... Bb7 {[%clk 0:02:55.2]} 5. Bd3 {[%clk 0:03:00.7]}
5... c5 {[%clk 0:02:55.1]} 6. O-O {[%clk 0:02:59.2]} 6... d6 {[%clk 0:02:53.1]}
7. h3 {[%clk 0:02:58.6]} 7... Be7 {[%clk 0:02:53.1]} 8. c3 {[%clk 0:02:53.2]}
8... O-O {[%clk 0:02:52.5]} 9. Nbd2 {[%clk 0:02:53.4]} 9... Nc6 {[%clk
0:02:51.2]} 10. Bh2 {[%clk 0:02:53.5]} 10... Re8 {[%clk 0:02:48.7]} 11. Re1
{[%clk 0:02:53]} 11... Bf8 {[%clk 0:02:47.4]} 12. e4 {[%clk 0:02:52.8]} 12... e5
{[%clk 0:02:46.1]} 13. d5 {[%clk 0:02:52.8]} 13... Ne7 {[%clk 0:02:45.8]} 14. a4
{[%clk 0:02:52.7]} 14... Ng6 {[%clk 0:02:45.6]} 15. Nc4 {[%clk 0:02:51.5]} 15...
a6 {[%clk 0:02:37.3]} 16. Qb3 {[%clk 0:02:50.8]} 16... Nd7 {[%clk 0:02:30]} 17.
Ne3 {[%clk 0:02:45.2]} 17... Rb8 {[%clk 0:02:21.2]} 18. Qc2 {[%clk 0:02:34.9]}
18... Nf6 {[%clk 0:02:12]} 19. Nd2 {[%clk 0:02:25.8]} 19... Nh5 {[%clk
0:02:06.5]} 20. Bf1 {[%clk 0:02:23.8]} 20... Bc8 {[%clk 0:02:01.1]} 21. Reb1
{[%clk 0:02:14.2]} 21... Nhf4 {[%clk 0:01:54.8]} 22. Ndc4 {[%clk 0:02:05.2]}
22... b5 {[%clk 0:01:42.1]} 23. axb5 {[%clk 0:02:04.1]} 23... axb5 {[%clk
0:01:41.8]} 24. Na5 {[%clk 0:02:04.7]} 24... Qg5 {[%clk 0:01:35.8]} 25. Kh1
{[%clk 0:02:03.2]} 25... h5 {[%clk 0:01:15.4]} 26. Nc6 {[%clk 0:01:47.8]} 26...
Rb7 {[%clk 0:01:06.3]} 27. Ra5 {[%clk 0:01:46.7]} 27... c4 {[%clk 0:01:04.8]}
28. b3 {[%clk 0:01:45.7]} 28... cxb3 {[%clk 0:00:48.2]} 29. Rxb3 {[%clk
0:01:46.6]} 29... Bd7 {[%clk 0:00:39.2]} 30. Raxb5 {[%clk 0:01:38.4]} 30... Rxb5
{[%clk 0:00:39.3]} 31. Rxb5 {[%clk 0:01:36.2]} 31... Ra8 {[%clk 0:00:40.2]} 32.
Rb7 {[%clk 0:01:26.8]} 32... Bxh3 {[%clk 0:00:31.5]} 33. gxh3 {[%clk 0:01:22.1]}
33... Ra1 {[%clk 0:00:31.3]} 34. Rb1 {[%clk 0:01:21.9]} 34... Rxb1 {[%clk
0:00:23.3]} 35. Qxb1 {[%clk 0:01:21.9]} 35... Nh4 {[%clk 0:00:19.9]} 36. Qd1
{[%clk 0:01:14.3]} 36... g6 {[%clk 0:00:17]} 37. Bg3 {[%clk 0:01:13.3]} 37... f5
{[%clk 0:00:15.9]} 38. exf5 {[%clk 0:00:57]} 38... gxf5 {[%clk 0:00:15.4]} 39.
Bxh4 {[%clk 0:00:52.8]} 39... Qxh4 {[%clk 0:00:15]} 40. Qf3 {[%clk 0:00:48.4]}
40... Qf6 {[%clk 0:00:08.4]} 41. c4 {[%clk 0:00:45.9]} 41... Kh7 {[%clk
0:00:07.6]} 42. Qg3 {[%clk 0:00:37.9]} 42... Bh6 {[%clk 0:00:06.9]} 43. Ng2
{[%clk 0:00:30.5]} 43... Ng6 {[%clk 0:00:06.4]} 44. Qf3 {[%clk 0:00:29.5]} 44...
e4 {[%clk 0:00:06.4]} 45. Qxh5 {[%clk 0:00:24.2]} 45... f4 {[%clk 0:00:06.2]}
46. Qg4 {[%clk 0:00:20.1]} 46... Qa1 {[%clk 0:00:04]} 47. Qd7+ {[%clk
0:00:19.4]} 47... Bg7 {[%clk 0:00:03.6]} 48. Kg1 {[%clk 0:00:18.7]} 48... f3
{[%clk 0:00:03]} 49. Ne3 {[%clk 0:00:17.8]} 49... Nf4 {[%clk 0:00:03]} 50. Qf5+
{[%clk 0:00:14.7]} 50... Ng6 {[%clk 0:00:02]} 51. Qh5+ {[%clk 0:00:14.8]} 51...
Bh6 {[%clk 0:00:01.5]} 52. Nf5 {[%clk 0:00:15.1]} 1-0